bitfinex/quotes_BTCUSD_20240908
["timestamp","ask_amount","ask_price","bid_price","bid_amount"]
[1725786809184,0.482743,54867.0,54866.0,0.007]
[1725786809460,0.482743,54867.0,54850.0,0.16120847]
[1725786809461,0.1,54867.0,54848.0,0.08188235]
[1725786809686,0.638055,54854.0,54853.0,0.007]
[1725786809918,0.765666,54854.0,54850.0,0.007]
[1725786810143,0.70239,54851.0,54850.0,0.007]
[1725786810370,0.191918,54851.0,54850.0,0.007]
[1725786810821,0.70239,54851.0,54850.0,0.007]
[1725786811042,0.70217057,54851.0,54850.0,0.007]
[1725786811486,0.70217057,54851.0,54850.0,0.021]
[1725786811759,0.70217057,54851.0,54850.0,0.014]
[1725786811973,0.70217057,54851.0,54850.0,0.021]
[1725786811974,0.95740657,54851.0,54850.0,0.021]
[1725786812841,0.38263457,54851.0,54850.0,0.021]
[1725786813269,0.38263457,54851.0,54850.0,0.044]
[1725786813715,0.02858454,54852.0,54850.0,0.03]
[1725786813933,0.41143454,54852.0,54851.0,0.006]
[1725786814169,0.76666854,54852.0,54851.0,0.006]
[1725786814454,0.76666854,54852.0,54849.0,0.006]
[1725786814455,0.12762,54850.0,54849.0,0.006]
[1725786814703,0.382869,54849.0,54848.0,0.007626]
[1725786814943,0.382869,54849.0,54848.0,0.001626]
[1725786814944,0.993361,54849.0,54848.0,0.001626]
[1725786815187,1.137461,54849.0,54848.0,0.001626]
[1725786816099,1.392707,54849.0,54848.0,0.001626]
[1725786816318,0.127653,54836.0,54835.0,0.006]
[1725786816540,0.718065,54836.0,54835.0,0.006]
[1725786816769,1.037671,54836.0,54835.0,0.006]
[1725786817017,0.255316,54834.0,54833.0,0.006]
[1725786817267,0.1,54835.0,54831.0,0.006]
[1725786817509,0.1,54835.0,54829.0,0.006]
[1725786817741,0.638335,54830.0,54829.0,0.006]
[1725786817956,0.993669,54830.0,54829.0,0.006]
[1725786818622,0.483001,54830.0,54829.0,0.006]
[1725786819050,0.738335,54830.0,54829.0,0.006]
[1725786819957,0.484001,54830.0,54829.0,0.02]
[1725786820453,0.483001,54830.0,54829.0,0.006]
[1725786820668,0.739335,54830.0,54829.0,0.0193]
[1725786821560,0.484001,54830.0,54829.0,0.0188]
[1725786822244,0.484001,54830.0,54829.0,0.0186]
[1725786822469,0.484001,54830.0,54829.0,0.0181]
[1725786823108,0.484001,54830.0,54829.0,0.0179]
[1725786823598,0.25726206,54830.0,54829.0,0.0179]
[1725786823858,0.51259606,54830.0,54829.0,0.0179]
[1725786824756,0.02959506,54830.0,54829.0,0.019532]
[1725786825672,0.15726206,54830.0,54829.0,0.019532]
[1725786826131,0.41259606,54830.0,54829.0,0.019532]
[1725786826342,0.128667,54830.0,54829.0,0.019532]
[1725786827649,0.001,54830.0,54829.0,0.019532]
[1725786827898,0.001,54830.0,54829.0,0.04617906]
[1725786828355,0.128667,54830.0,54829.0,0.042532]
[1725786828557,0.128667,54830.0,54829.0,0.019532]
[1725786828558,0.739335,54830.0,54829.0,0.019532]
[1725786828809,0.484001,54830.0,54829.0,0.019532]
[1725786829027,0.484001,54830.0,54829.0,0.005532]
[1725786829028,0.627801,54830.0,54829.0,0.005532]
[1725786829257,0.883135,54830.0,54829.0,0.019532]
[1725786829485,1.138469,54830.0,54829.0,0.005532]
[1725786829969,1.138469,54830.0,54829.0,0.019532]
[1725786830203,1.138469,54830.0,54829.0,0.005532]
[1725786830431,1.138469,54830.0,54829.0,0.018532]
[1725786830665,1.138469,54830.0,54829.0,0.014632]
[1725786830908,1.138469,54830.0,54829.0,0.001632]
[1725786831139,0.2448,54830.0,54809.0,0.3543133]
[1725786831359,0.2448,54830.0,54804.0,0.127727]
[1725786831360,0.127712,54811.0,54804.0,0.127727]
[1725786831604,0.0621,54813.0,54811.0,0.0039]
[1725786831883,0.127719,54808.0,54807.0,0.0039]
[1725786832108,0.127719,54808.0,54799.0,0.001628]
[1725786832109,0.127726,54805.0,54804.0,0.0039]
[1725786832598,0.127721,54807.0,54806.0,0.0039]
[1725786833275,0.127717,54809.0,54806.0,0.0039]
[1725786833546,0.38314,54810.0,54809.0,0.0039]
[1725786833760,0.127713,54810.0,54809.0,0.0039]
[1725786833983,0.127713,54810.0,54799.0,0.00527716]
[1725786833984,0.255398,54817.0,54816.0,0.0039]
[1725786834208,0.227697,54817.0,54816.0,0.0039]
[1725786834432,0.483092,54817.0,54816.0,0.0039]
[1725786836699,0.483092,54817.0,54816.0,0.0119]
[1725786836930,0.51169281,54817.0,54816.0,0.0039]
[1725786837396,0.25629781,54817.0,54816.0,0.0159]
[1725786838966,0.51169281,54817.0,54816.0,0.0159]
[1725786839423,0.25629781,54817.0,54816.0,0.0159]
[1725786839654,0.02860081,54817.0,54816.0,0.166599]
[1725786839919,0.255348,54827.0,54826.0,0.0039]
[1725786840140,0.63837,54827.0,54826.0,0.0039]
[1725786840374,0.383022,54827.0,54826.0,0.0039]
[1725786840617,0.383022,54827.0,54817.0,0.13134397]
[1725786840618,0.383029,54826.0,54825.0,0.0039]
[1725786841305,0.483029,54826.0,54825.0,0.0039]
[1725786842694,0.483029,54826.0,54825.0,0.0179]
[1725786843383,0.227676,54826.0,54825.0,0.0179]
[1725786843623,0.1,54826.0,54825.0,0.0179]
[1725786843855,0.227676,54826.0,54825.0,0.0179]
[1725786844535,0.227676,54826.0,54825.0,0.168578]
[1725786844536,0.02859598,54826.0,54825.0,0.168578]
[1725786844751,0.02859598,54826.0,54825.0,0.42758243]
[1725786845440,0.000816,54830.0,54829.0,0.0039]
[1725786845659,0.000816,54830.0,54829.0,0.0269]
[1725786846345,0.000816,54830.0,54829.0,0.154569]
[1725786846839,0.000816,54830.0,54829.0,0.665247]
[1725786847043,0.000816,54830.0,54829.0,0.676247]
[1725786847272,0.000816,54830.0,54829.0,0.931586]
[1725786847483,0.000816,54830.0,54829.0,0.676247]
[1725786847934,0.000816,54830.0,54829.0,1.013586]
[1725786848158,1e-08,54830.0,54829.0,1.013586]
[1725786848385,1e-08,54830.0,54829.0,1.029586]
[1725786848606,1e-08,54830.0,54829.0,1.015586]
[1725786849095,1e-08,54830.0,54829.0,2.789486]
[1725786849297,0.55430836,54848.0,54847.0,0.386782]
[1725786849515,0.55430836,54848.0,54847.0,0.665037]
[1725786849727,0.0618,54858.0,54850.0,0.386761]
[1725786849940,0.0618,54858.0,54850.0,0.409761]
[1725786850202,0.0618,54858.0,54850.0,0.665002]
[1725786850442,0.127602,54858.0,54850.0,0.665002]
[1725786850665,0.127604,54857.0,54850.0,0.409761]
[1725786850883,0.255192,54861.0,54850.0,0.409761]
[1725786850884,0.127608,54856.0,54850.0,0.409761]
[1725786851087,0.1,54855.0,54850.0,0.15452]
[1725786851333,0.1,54855.0,54850.0,0.409761]
[1725786851793,0.1,54856.0,54850.0,0.409761]
[1725786852013,0.1,54856.0,54850.0,0.665002]
[1725786852233,0.127605,54857.0,54850.0,0.409761]
[1725786852484,0.1,54856.0,54850.0,0.15452]
[1725786852939,0.1,54856.0,54850.0,0.409761]
[1725786853182,0.02858151,54852.0,54850.0,0.409761]
[1725786854092,0.128434,54851.0,54850.0,0.0269]
[1725786854307,0.000816,54851.0,54850.0,0.0269]
[1725786854516,0.000816,54851.0,54850.0,0.15452]
[1725786854727,0.000816,54851.0,54850.0,0.679002]
[1725786855146,0.000816,54851.0,54850.0,0.423761]
[1725786855621,0.000816,54851.0,54850.0,0.409761]
[1725786855851,0.000816,54851.0,54850.0,0.505761]
[1725786856066,0.000816,54851.0,54850.0,0.423761]
[1725786856284,0.000816,54851.0,54850.0,0.409761]
[1725786856544,0.000816,54851.0,54850.0,0.423761]
[1725786856779,0.000816,54851.0,54850.0,0.16852]
[1725786857221,0.000816,54851.0,54850.0,0.0409]
[1725786857441,0.000816,54851.0,54850.0,0.16852]
[1725786857888,0.000816,54851.0,54850.0,0.0409]
[1725786858110,0.000816,54851.0,54850.0,0.16852]
[1725786858551,0.000816,54851.0,54850.0,0.423761]
[1725786858777,0.000816,54851.0,54850.0,0.0409]
[1725786859183,0.128434,54851.0,54850.0,0.0409]
[1725786859418,0.38367,54851.0,54850.0,0.0409]
[1725786859635,0.128434,54851.0,54850.0,0.0409]
[1725786860059,0.38367,54851.0,54850.0,0.0409]
[1725786860541,0.38367,54851.0,54850.0,0.0179]
[1725786860981,0.127623,54849.0,54848.0,0.0039]
[1725786861192,0.382903,54844.0,54843.0,0.0039]
[1725786861404,0.717372,54844.0,54843.0,0.0039]
[1725786861870,0.74596029,54844.0,54843.0,0.0039]
[1725786862110,1.00122929,54844.0,54843.0,0.0039]
[1725786862319,0.893459,54843.0,54842.0,0.0039]
[1725786863897,0.89349,54841.0,54840.0,0.0039]
[1725786864103,0.95529,54841.0,54840.0,0.0039]
[1725786864353,0.95529,54841.0,54830.0,0.001632]
[1725786864354,0.63822,54840.0,54839.0,0.0039]
[1725786864581,0.893508,54840.0,54839.0,0.0039]
[1725786865027,0.63822,54840.0,54839.0,0.0039]
[1725786866131,0.63822,54840.0,54839.0,0.0179]
[1725786866351,0.893508,54840.0,54839.0,0.014]
[1725786866614,1.072708,54840.0,54839.0,0.014]
[1725786867335,0.638242,54838.0,54837.0,0.0039]
[1725786867559,0.255302,54837.0,54836.0,0.0039]
[1725786867779,0.993557,54837.0,54836.0,0.0039]
[1725786868002,0.638277,54835.0,54834.0,0.0039]
[1725786868264,0.0657,54835.0,54830.0,0.001632]
[1725786868487,0.465295,54831.0,54830.0,0.001632]
[1725786868707,1.041655,54831.0,54830.0,0.001632]
[1725786869138,1.396985,54831.0,54830.0,0.001632]
[1725786869818,1.396985,54831.0,54813.0,0.001632]
[1725786869819,0.127699,54816.0,54815.0,0.0039]
[1725786870029,0.63851,54815.0,54814.0,0.0039]
[1725786870250,0.893914,54815.0,54814.0,0.0039]
[1725786870458,0.638522,54814.0,54813.0,0.001632]
[1725786870689,0.893931,54814.0,54813.0,0.005532]
[1725786870906,0.893931,54814.0,54813.0,0.001632]
[1725786871125,0.893931,54814.0,54813.0,0.005532]
[1725786871765,0.893931,54814.0,54813.0,0.001632]
[1725786872014,0.894931,54814.0,54813.0,0.014632]
[1725786872647,0.994931,54814.0,54813.0,0.014632]
[1725786873282,1.077231,54814.0,54813.0,0.014632]
[1725786873752,1.141931,54814.0,54813.0,0.001632]
[1725786873962,1.141931,54814.0,54813.0,0.010632]
[1725786874170,1.142931,54814.0,54813.0,0.010632]
[1725786874387,1.142931,54814.0,54813.0,0.001632]
[1725786874636,1.17253221,54814.0,54813.0,0.010632]
[1725786874911,0.3584931,54814.0,54809.0,0.001632]
[1725786875151,1.04177449,54810.0,54809.0,0.001632]
[1725786875366,1.29720149,54810.0,54809.0,0.001632]
[1725786875583,1.52534149,54810.0,54809.0,0.001632]
[1725786875792,1.78076849,54810.0,54809.0,0.001632]
[1725786876212,0.638685,54800.0,54799.0,0.001628]
[1725786876425,0.886685,54800.0,54799.0,0.001628]
[1725786876648,1.142159,54800.0,54799.0,0.001628]
[1725786876894,0.886685,54800.0,54799.0,0.001628]
[1725786877135,0.91529928,54800.0,54799.0,0.001628]
[1725786877347,0.886685,54800.0,54799.0,0.001628]
[1725786878019,0.887685,54800.0,54799.0,0.001628]
[1725786878459,0.804385,54800.0,54799.0,0.001628]
[1725786878685,0.805385,54800.0,54799.0,0.001628]
[1725786879186,0.484211,54800.0,54799.0,0.001628]
[1725786879411,0.484211,54800.0,54799.0,0.005528]
[1725786880312,0.101,54800.0,54799.0,0.005528]
[1725786880522,0.228737,54800.0,54799.0,0.005528]
[1725786880940,0.484211,54800.0,54799.0,0.005528]
[1725786881192,0.228737,54800.0,54799.0,0.005528]
[1725786881402,0.51282325,54800.0,54799.0,0.005528]
[1725786883348,0.12961225,54800.0,54799.0,0.005528]
[1725786884031,0.12961225,54800.0,54799.0,0.028528]
[1725786884266,0.02961225,54800.0,54799.0,0.411746]
[1725786884939,0.02861225,54800.0,54799.0,0.667225]
[1725786885387,0.02961225,54800.0,54799.0,0.667225]
[1725786885604,0.02861225,54800.0,54799.0,0.667225]
[1725786885821,0.02961225,54800.0,54799.0,0.667225]
[1725786886044,0.02961225,54800.0,54799.0,0.411746]
[1725786886455,0.02961225,54800.0,54799.0,0.667225]
[1725786889103,0.00555229,54800.0,54799.0,1.002504]
[1725786889329,0.001,54800.0,54799.0,1.002504]
[1725786890002,0.001,54800.0,54799.0,1.16600284]
[1725786891865,0.001,54800.0,54799.0,0.91052384]
[1725786892750,0.001,54800.0,54799.0,1.16600284]
[1725786895976,0.001,54800.0,54799.0,0.411746]
[1725786896417,0.001,54800.0,54799.0,0.667225]
[1725786897740,0.001,54800.0,54799.0,0.922704]
[1725786897953,0.001,54800.0,54799.0,0.667225]
[1725786899158,0.02860716,54806.0,54805.0,0.0039]
[1725786899385,0.02860716,54806.0,54805.0,0.0269]
[1725786899611,0.894257,54794.0,54777.0,0.3543133]
[1725786899827,0.894257,54794.0,54777.0,0.6098933]
[1725786900043,0.994257,54794.0,54778.0,0.00365065]
[1725786900262,0.994257,54794.0,54777.0,0.5662033]
[1725786900263,1.146157,54794.0,54777.0,0.5662033]
[1725786900482,1.146157,54794.0,54777.0,0.3543133]
[1725786901464,0.2519,54794.0,54781.0,0.16349884]
[1725786901697,0.379651,54794.0,54784.0,0.211873]
[1725786901938,0.380651,54794.0,54793.0,0.00962]
[1725786902176,0.380651,54794.0,54793.0,0.00162]
[1725786902177,0.635153,54794.0,54793.0,0.00162]
[1725786902626,0.636153,54794.0,54793.0,0.00962]
[1725786902848,0.635153,54794.0,54793.0,0.00162]
[1725786903322,0.02861241,54798.0,54793.0,0.00162]
[1725786903800,0.25635441,54798.0,54793.0,0.02462]
[1725786904040,0.15635441,54798.0,54793.0,0.02462]
[1725786904276,0.255493,54796.0,54793.0,0.02462]
[1725786904501,0.127747,54796.0,54794.0,0.023]
[1725786904737,0.127751,54794.0,54793.0,0.00162]
[1725786904931,0.128751,54794.0,54793.0,0.01362]
[1725786905195,0.127751,54794.0,54793.0,0.02462]
[1725786905430,0.227744,54797.0,54793.0,0.03562]
[1725786905673,0.1,54797.0,54794.0,0.023]
[1725786905926,0.25635541,54798.0,54794.0,0.023]
[1725786906151,0.25635541,54798.0,54794.0,0.022]
[1725786906152,0.127746,54797.0,54794.0,0.022]
[1725786906384,0.1,54796.0,54794.0,0.022]
[1725786906913,0.227747,54796.0,54793.0,0.01462]
[1725786907140,0.127748,54795.0,54793.0,0.01462]
[1725786907370,0.1,54796.0,54793.0,0.01462]
[1725786907603,0.227747,54796.0,54793.0,0.01462]
[1725786908072,0.1,54796.0,54793.0,0.00162]
[1725786908306,0.127747,54796.0,54793.0,0.00162]
[1725786908571,0.127748,54795.0,54794.0,0.014]
[1725786908796,0.127748,54795.0,54794.0,0.023]
[1725786909258,0.255489,54797.0,54793.0,0.01562]
[1725786909259,0.001,54796.0,54793.0,0.01562]
[1725786909475,0.127751,54794.0,54793.0,0.00162]
[1725786909729,0.127751,54794.0,54793.0,0.01562]
[1725786909944,0.127751,54794.0,54793.0,0.03862]
[1725786910422,0.101,54796.0,54793.0,0.03862]
[1725786910643,0.001,54796.0,54794.0,0.023]
[1725786910849,0.001,54796.0,54795.0,0.127748]
[1725786911096,0.02861068,54797.0,54795.0,0.150748]
[1725786911336,0.02861068,54797.0,54794.0,0.023]
[1725786911545,0.02861068,54797.0,54796.0,0.023]
[1725786911783,0.15635468,54797.0,54794.0,0.023]
[1725786912011,0.15635468,54797.0,54794.0,0.037]
[1725786912012,0.001,54795.0,54794.0,0.037]
[1725786912242,0.15635468,54797.0,54794.0,0.023]
[1725786912459,0.02861068,54797.0,54794.0,0.15075]
[1725786912670,0.02961068,54797.0,54794.0,0.16475]
[1725786913107,0.127748,54795.0,54794.0,0.037]
[1725786913352,0.383245,54795.0,54794.0,0.037]
[1725786913789,0.1083348,54795.0,54794.0,0.037]
[1725786914227,0.02961068,54797.0,54794.0,0.037]
[1725786914445,0.02861068,54797.0,54794.0,0.023]
[1725786914668,0.02861068,54797.0,54795.0,0.00364966]
[1725786914892,0.02861068,54797.0,54793.0,0.257123]
[1725786914893,0.02861068,54797.0,54796.0,0.023]
[1725786915110,0.02861068,54797.0,54796.0,0.150746]
[1725786915328,0.02861068,54797.0,54796.0,0.023]
[1725786915570,0.000816,54799.0,54793.0,0.13302051]
[1725786915571,0.000816,54799.0,54794.0,0.023]
[1725786915793,0.001,54797.0,54795.0,0.127748]
[1725786916018,0.228555,54799.0,54796.0,0.023]
[1725786916454,0.001,54797.0,54796.0,0.037]
[1725786917822,0.000816,54799.0,54796.0,0.023]
[1725786918109,0.001,54797.0,54795.0,0.014]
[1725786918312,0.128744,54797.0,54796.0,0.023]
[1725786918535,0.127744,54797.0,54796.0,0.023]
[1725786918749,0.128744,54797.0,54796.0,0.014]
[1725786919078,0.127744,54797.0,54796.0,0.023]
[1725786919301,0.127744,54797.0,54793.0,0.129372]
[1725786919302,0.127746,54796.0,54794.0,0.023]
[1725786919523,0.128744,54797.0,54795.0,0.014]
[1725786919738,0.128744,54797.0,54796.0,0.023]
[1725786919980,0.001,54797.0,54796.0,0.023]
[1725786920222,0.55430836,54819.0,54808.0,0.383155]
[1725786920453,0.55430836,54819.0,54808.0,0.745892]
[1725786920686,0.68200236,54819.0,54808.0,0.777892]
[1725786920916,0.000816,54830.0,54808.0,0.777892]
[1725786920917,0.144216,54830.0,54808.0,1.043329]
[1725786921163,0.255343,54829.0,54808.0,1.043329]
[1725786921419,0.144216,54830.0,54808.0,1.045329]
[1725786921659,0.127675,54827.0,54808.0,1.043329]
[1725786921882,0.255341,54829.0,54808.0,1.057329]
[1725786922109,0.144216,54830.0,54808.0,1.043329]
[1725786922333,0.255342,54829.0,54808.0,1.043329]
[1725786922563,0.255354,54826.0,54808.0,1.057329]
[1725786922785,0.127684,54823.0,54808.0,1.043329]
[1725786923014,0.25537,54823.0,54808.0,1.033329]
[1725786923245,0.383055,54823.0,54808.0,1.033329]
[1725786923465,0.127682,54824.0,54808.0,1.033329]
[1725786923688,0.127677,54826.0,54808.0,1.033329]
[1725786923951,0.227679,54825.0,54808.0,1.043329]
[1725786924175,0.227679,54825.0,54808.0,1.057329]
[1725786924403,0.227679,54825.0,54808.0,1.043329]
[1725786924857,0.227679,54825.0,54808.0,1.057329]
[1725786925082,0.227679,54825.0,54808.0,1.043329]
[1725786925537,0.02859703,54824.0,54808.0,1.057329]
[1725786925848,0.02859703,54824.0,54808.0,1.043329]
[1725786926297,0.227679,54825.0,54808.0,1.057329]
[1725786926298,0.1,54825.0,54808.0,1.057329]
[1725786926529,0.127677,54826.0,54808.0,1.057329]
[1725786926744,0.1,54825.0,54808.0,1.059329]
[1725786926969,0.144216,54830.0,54808.0,1.334766]
[1725786927196,1e-08,54809.0,54808.0,1.45235755]
[1725786927417,1e-08,54809.0,54808.0,1.371346]
[1725786927866,1e-08,54809.0,54808.0,2.607246]
[1725786928099,0.000816,54830.0,54808.0,2.607246]
[1725786928100,0.000816,54830.0,54829.0,0.383008]
[1725786928558,0.000816,54830.0,54829.0,0.638347]
[1725786929027,0.000816,54830.0,54829.0,0.383008]
[1725786929258,0.000816,54830.0,54829.0,0.661347]
[1725786929501,0.000816,54830.0,54829.0,0.675347]
[1725786930929,0.000816,54830.0,54829.0,0.661347]
[1725786932597,0.000816,54830.0,54829.0,0.675347]
[1725786933105,0.127698,54817.0,54812.0,0.200847]
[1725786933357,0.127698,54817.0,54806.0,0.08085176]
[1725786933358,0.1415,54820.0,54803.0,0.59830836]
[1725786933594,0.1415,54820.0,54806.0,0.255441]
[1725786933812,0.396881,54820.0,54808.0,0.255433]
[1725786934048,0.396881,54820.0,54812.0,0.127707]
[1725786934294,0.1415,54820.0,54813.0,0.00364822]
[1725786934514,0.26919,54820.0,54816.0,0.127699]
[1725786934748,0.26919,54820.0,54811.0,0.255422]
[1725786934749,0.269192,54820.0,54813.0,0.255411]
[1725786934980,0.1415,54820.0,54816.0,0.127699]
[1725786935209,0.269191,54820.0,54815.0,0.1277]
[1725786935431,0.269191,54820.0,54816.0,0.127699]
[1725786935674,0.127693,54819.0,54815.0,0.1277]
[1725786936372,0.127693,54819.0,54816.0,0.023]
[1725786937051,0.1415,54820.0,54816.0,0.150698]
[1725786937300,0.270191,54820.0,54816.0,0.150698]
[1725786937519,0.269191,54820.0,54816.0,0.150698]
[1725786937736,0.269191,54820.0,54816.0,0.150699]
[1725786937953,0.001,54819.0,54816.0,0.150699]
[1725786938190,0.269191,54820.0,54816.0,0.023]
[1725786938191,0.127696,54818.0,54816.0,0.023]
[1725786938409,0.127696,54818.0,54812.0,0.278417]
[1725786938656,0.127696,54818.0,54814.0,0.127703]
[1725786938878,0.127696,54818.0,54815.0,0.023]
[1725786939324,0.397883,54820.0,54815.0,0.150702]
[1725786939555,0.127693,54819.0,54815.0,0.150702]
[1725786939806,0.127693,54819.0,54816.0,0.127699]
[1725786940046,0.17109708,54820.0,54817.0,0.023]
[1725786940281,0.29778908,54820.0,54817.0,0.023]
[1725786940728,0.001,54818.0,54817.0,0.023]
[1725786941228,0.001,54818.0,54817.0,0.035]
[1725786941949,0.29778908,54820.0,54817.0,0.023]
[1725786942182,0.09249708,54820.0,54817.0,0.023]
[1725786942478,0.255362,54825.0,54812.0,0.255417]
[1725786942479,0.0639,54826.0,54825.0,0.127678]
[1725786942721,0.269161,54833.0,54829.0,0.127669]
[1725786942952,0.000816,54830.0,54829.0,0.383008]
[1725786943181,0.000816,54830.0,54829.0,0.406008]
[1725786943443,0.000816,54830.0,54829.0,0.023]
[1725786943913,0.000816,54830.0,54827.0,0.127673]
[1725786943914,0.000816,54830.0,54828.0,0.023]
[1725786944361,0.000816,54830.0,54828.0,0.149671]
[1725786944583,0.000816,54830.0,54828.0,0.022]
[1725786944584,0.128484,54830.0,54828.0,0.022]
[1725786944831,0.128484,54830.0,54826.0,0.127676]
[1725786945091,0.129484,54830.0,54829.0,0.007]
[1725786945323,0.129484,54830.0,54826.0,0.127676]
[1725786945543,0.128484,54830.0,54826.0,0.127676]
[1725786945987,0.127669,54829.0,54824.0,0.255362]
[1725786946204,0.128483,54830.0,54829.0,0.001632]
[1725786946680,0.001816,54830.0,54829.0,0.001632]
[1725786946903,0.001816,54830.0,54829.0,0.024632]
[1725786947140,0.000816,54830.0,54829.0,0.024632]
[1725786948042,0.001816,54830.0,54829.0,0.166301]
[1725786948276,0.001816,54830.0,54829.0,0.932318]
[1725786949240,0.001816,54830.0,54829.0,0.676979]
[1725786949678,0.001816,54830.0,54829.0,0.166301]
[1725786949904,0.001816,54830.0,54829.0,0.024632]
[1725786949905,0.207083,54830.0,54829.0,0.024632]
[1725786950154,0.463417,54830.0,54829.0,0.014632]
[1725786950395,0.208083,54830.0,54829.0,0.037632]
[1725786950622,0.463417,54830.0,54829.0,0.037632]
[1725786950873,0.208083,54830.0,54829.0,0.037632]
[1725786951085,0.207083,54830.0,54829.0,0.024632]
[1725786951546,0.462417,54830.0,54829.0,0.001632]
[1725786951833,0.1,54836.0,54829.0,0.001632]
[1725786951834,0.0662,54844.0,54839.0,0.255292]
[1725786952043,0.1448,54844.0,54840.0,0.66122]
[1725786953135,0.1448,54844.0,54840.0,0.405932]
[1725786953589,0.1448,54844.0,54840.0,0.150644]
[1725786954045,0.1448,54844.0,54840.0,0.419932]
[1725786954267,0.1448,54844.0,54840.0,0.405932]
[1725786954719,0.1448,54844.0,54840.0,0.419932]
[1725786954950,0.1448,54844.0,54840.0,0.405932]
[1725786956518,0.1448,54844.0,54840.0,0.150644]
[1725786956781,0.1448,54844.0,54840.0,0.405932]
[1725786957014,0.1448,54844.0,54840.0,0.419932]
[1725786957235,0.1448,54844.0,54840.0,0.405932]
[1725786957455,0.1448,54844.0,54840.0,0.66122]
[1725786957679,0.0662,54844.0,54840.0,0.930508]
[1725786957897,0.0662,54844.0,54840.0,0.916508]
[1725786958160,0.0662,54844.0,54840.0,0.67522]
[1725786967639,0.0662,54844.0,54840.0,0.037]
[1725786967887,0.0662,54844.0,54840.0,0.67522]
[1725786968378,0.0662,54844.0,54840.0,0.419932]
[1725786969339,0.0662,54844.0,54840.0,0.67522]
[1725786972194,0.1,54846.0,54840.0,0.930508]
[1725786972420,0.000856,54841.0,54840.0,0.930508]
[1725786973309,0.000856,54841.0,54840.0,0.67522]
[1725786974693,0.279697,54841.0,54840.0,0.037]
[1725786974934,0.53498,54841.0,54840.0,0.014]
[1725786975154,0.40828472,54841.0,54840.0,0.014]
[1725786976041,0.127644,54840.0,54836.0,0.127651]
[1725786976255,0.127644,54840.0,54837.0,0.023]
[1725786976689,0.379698,54841.0,54837.0,0.15065]
[1725786976915,0.1,54840.0,54838.0,0.127648]
[1725786977135,0.127647,54839.0,54837.0,0.023]
[1725786977391,0.1,54847.0,54830.0,0.001632]
[1725786977619,0.382947,54838.0,54837.0,0.014]
[1725786978084,0.382947,54838.0,54832.0,0.127661]
[1725786978085,0.255297,54838.0,54832.0,0.127661]
[1725786978309,0.12765,54838.0,54833.0,0.15066]
[1725786978525,0.127646,54840.0,54833.0,0.023]
[1725786978777,0.127646,54840.0,54832.0,0.023]
[1725786978778,0.255289,54840.0,54832.0,0.023]
[1725786979216,0.127649,54838.0,54833.0,0.12766]
[1725786979438,0.127655,54835.0,54834.0,0.023]
[1725786979869,0.127652,54837.0,54833.0,0.014]
[1725786980086,0.127652,54837.0,54834.0,0.023]
[1725786980303,0.1512,54844.0,54834.0,0.023]
[1725786980523,0.1,54843.0,54836.0,0.127652]
[1725786980740,0.127645,54840.0,54837.0,0.023]
[1725786982306,0.127645,54840.0,54835.0,0.150655]
[1725786982536,0.127646,54839.0,54835.0,0.150655]
[1725786982973,0.127646,54839.0,54837.0,0.014]
[1725786983220,0.127646,54839.0,54835.0,0.150655]
[1725786983451,0.127646,54839.0,54835.0,0.164655]
[1725786983932,0.127646,54839.0,54835.0,0.150655]
[1725786984147,0.127644,54840.0,54836.0,0.127653]
[1725786984363,0.127644,54840.0,54837.0,0.023]
[1725786985247,0.127644,54840.0,54836.0,0.023]
[1725786986142,0.127646,54839.0,54837.0,0.014]
[1725786986408,0.127646,54839.0,54836.0,0.023]
[1725786986619,0.127646,54839.0,54835.0,0.00163]
[1725786986841,0.127646,54839.0,54836.0,0.014]
[1725786987061,0.127642,54841.0,54837.0,0.15065]
[1725786987285,0.227644,54840.0,54837.0,0.023]
[1725786987502,0.127644,54840.0,54837.0,0.014]
[1725786988177,0.127646,54839.0,54837.0,0.014]
[1725786988423,0.127644,54840.0,54837.0,0.014]
[1725786988660,0.127644,54840.0,54836.0,0.127653]
[1725786988934,0.127644,54840.0,54837.0,0.023]
[1725786989646,0.15623165,54840.0,54837.0,0.023]
[1725786989885,0.02858765,54840.0,54837.0,0.023]
[1725786990104,0.15623165,54840.0,54836.0,0.014]
[1725786990328,0.127651,54837.0,54836.0,0.014]
[1725786990548,0.127651,54837.0,54835.0,0.00163]
[1725786990785,0.127653,54836.0,54835.0,0.00163]
[1725786991014,0.382959,54836.0,54835.0,0.00163]
[1725786991252,0.638265,54836.0,54835.0,0.00163]
[1725786991509,0.127653,54836.0,54835.0,0.00163]
[1725786991732,0.382959,54836.0,54835.0,0.00163]
[1725786992912,0.1461,54836.0,54835.0,0.00163]
[1725786993148,0.1461,54836.0,54835.0,0.01563]
[1725786993386,0.1461,54836.0,54835.0,0.00163]
[1725786993619,0.273753,54836.0,54835.0,0.00163]
[1725786993837,0.1461,54836.0,54835.0,0.01563]
[1725786994100,0.273753,54836.0,54835.0,0.01563]
[1725786994314,0.1461,54836.0,54835.0,0.01563]
[1725786994548,0.273753,54836.0,54835.0,0.01563]
[1725786994768,0.1461,54836.0,54835.0,0.01563]
[1725786994996,0.1461,54836.0,54835.0,0.00163]